bitfinex/quotes_ETHUSD_20251015
["timestamp","ask_amount","ask_price","bid_price","bid_amount"]
[1760551202632,2.50031253,3999.5,3998.9,0.02500687]
[1760551202845,2.50026212,3999.6,3998.9,0.46750687]
[1760551203046,2.49993559,4000.2,3998.9,0.46750687]
[1760551203047,0.3065,4000.5,3999.0,0.6336]
[1760551203218,1.729,4000.8,3999.0,0.6336]
[1760551203550,2.49999517,4000.1,3999.1,2.73701453]
[1760551203750,2.50013376,3999.8,3999.2,2.91271166]
[1760551203951,0.001,4000.8,3999.3,0.02500437]
[1760551204249,2.49998542,4000.1,3999.3,2.94289456]
[1760551204451,2.49991696,4000.2,3999.4,0.46750375]
[1760551204636,2.49973995,4000.5,3999.7,2.50014881]
[1760551204816,0.001,4000.8,3999.8,0.50004613]
[1760551205016,2.49992932,4000.2,3999.8,0.50004613]
[1760551205252,2.49992932,4000.2,3999.4,2.94286256]
[1760551205459,2.49975072,4000.4,3999.4,0.4425]
[1760551205638,2.50083129,4000.3,3999.6,2.50024703]
[1760551205951,2.50083129,4000.3,3999.6,0.4425]
[1760551205952,0.001,4000.3,3999.6,0.4425]
[1760551206152,0.001,4000.3,3999.8,2.50012006]
[1760551206342,0.001,4000.3,3999.9,0.29426201]
[1760551206565,0.001,4000.3,3999.6,0.4425]
[1760551207058,0.001,4000.3,4000.2,2.499875]
[1760551207357,0.001,4000.3,3999.6,0.4425]
[1760551207358,0.001,4000.3,4000.1,0.6336]
[1760551207515,0.001,4000.3,4000.1,2.49987933]
[1760551207720,0.001,4000.3,4000.2,2.942375]
[1760551207944,0.001,4000.3,4000.2,3.2366125]
[1760551208265,0.001,4000.3,4000.2,3.8702125]
[1760551208777,0.001,4000.3,4000.2,6.34953576]
[1760551211530,0.001,4000.3,4000.2,3.97446076]
[1760551211729,0.001,4000.3,4000.2,6.03183576]
[1760551212055,0.001,4000.3,4000.2,6.47433576]
[1760551212268,0.001,4000.3,4000.2,0.75132326]
[1760551212456,0.001,4000.3,3999.5,2.50025109]
[1760551212663,0.3167,4000.3,3999.2,0.75149641]
[1760551212822,0.3179,4000.2,3998.8,0.4425]
[1760551213022,0.0998,4000.1,3998.8,0.4425]
[1760551213219,0.0998,4000.0,3999.3,2.50037923]
[1760551213526,2.60097253,3999.9,3999.1,2.50050028]
[1760551213723,0.2181,4000.2,3998.9,0.21705]
[1760551213923,0.1009,3999.9,3998.3,2.50100438]
[1760551214122,2.62605337,3999.8,3998.3,0.3167]
[1760551214356,2.50060872,3999.1,3998.3,0.3167]
[1760551214655,2.50060872,3999.1,3998.3,2.50100692]
[1760551214962,2.50060872,3999.1,3998.2,0.2365]
[1760551214963,2.50063837,3999.0,3998.2,2.50110803]
[1760551215147,0.1009,3999.1,3998.4,2.5010004]
[1760551215456,2.6722499,3999.2,3998.4,2.50098859]
[1760551215666,0.1717,3999.2,3998.4,2.50094523]
[1760551215820,0.1717,3999.2,3998.3,0.2945608]
[1760551216022,0.2085,4001.0,3998.4,1.10111]
[1760551216023,2.50006568,3999.9,3998.4,1.10111]
[1760551216228,2.50014001,3999.8,3999.0,2.50058036]
[1760551216423,0.2169,4000.5,3999.2,0.6336]
[1760551216958,0.2169,4000.5,3999.1,0.2365]
[1760551217161,0.1002,4000.2,3999.3,2.50038795]
[1760551217365,0.2169,4000.5,3999.4,0.4425]
[1760551217567,0.2169,4000.5,3999.5,0.6336]
[1760551217883,0.2169,4000.5,3999.8,2.50009789]
[1760551218091,0.2169,4000.5,3999.8,0.50003479]
[1760551218289,0.2169,4000.5,3999.8,3.00013897]
[1760551218454,0.2169,4000.5,3999.9,2.50002843]
[1760551218881,0.2169,4000.5,3999.8,3.00014781]
[1760551219192,2.71660665,4000.5,3999.8,3.00014781]
[1760551219365,0.2169,4000.5,3999.9,2.50003352]
[1760551219565,0.001,4000.8,4000.0,0.32500683]
[1760551219764,0.001,4000.8,4000.0,0.025]
[1760551219982,2.49964228,4000.6,3999.9,2.50005275]
[1760551220293,2.50052549,4000.8,3999.8,0.4425]
[1760551220294,0.001,4000.8,3999.8,0.4425]
[1760551220456,0.001,4000.8,4000.1,2.49991135]
[1760551220787,0.001,4000.8,3999.9,0.02500062]
[1760551220788,2.4996056,4000.7,4000.0,2.49998202]
[1760551220978,2.49966079,4000.6,4000.1,0.29603826]
[1760551221284,0.001,4000.8,4000.2,0.02499875]
[1760551221489,2.5005079,4000.8,4000.2,0.02499875]
[1760551221653,0.001,4000.8,4000.2,0.02499875]
[1760551221987,0.001,4000.8,4000.2,2.935275]
[1760551222367,0.001,4000.8,4000.2,0.5602]
[1760551222566,2.49960982,4000.7,4000.2,0.1248]
[1760551222784,0.001,4000.8,4000.2,0.1248]
[1760551222983,0.001,4000.8,4000.2,2.624675]
[1760551223160,0.001,4000.8,4000.2,3.1861406]
[1760551223564,2.50052331,4000.8,4000.2,0.6862656]
[1760551223766,0.001,4000.8,4000.2,2.624675]
[1760551223958,0.001,4000.8,4000.2,0.1248]
[1760551224371,0.001,4000.8,4000.2,2.624675]
[1760551224767,0.001,4000.8,4000.2,3.08507375]
[1760551224974,0.001,4000.8,4000.2,3.693675]
[1760551225176,0.001,4000.8,4000.2,4.36209765]
[1760551226182,0.001,4000.8,4000.2,1.86222265]
[1760551226393,0.001,4000.8,4000.2,0.79322265]
[1760551226668,0.001,4000.8,4000.2,3.29309765]
[1760551226868,0.001,4000.8,4000.2,3.72849765]
[1760551227295,0.001,4000.8,4000.2,4.3870964]
[1760551227502,0.001,4000.8,4000.2,0.66842265]
[1760551227805,0.001,4000.8,4000.2,2.499875]
[1760551228170,0.001,4000.8,4000.2,3.568875]
[1760551228368,0.001,4000.8,4000.0,2.4999927]
[1760551228369,0.001,4000.8,4000.1,0.6336]
[1760551228567,0.001,4000.8,4000.2,3.133475]
[1760551228796,0.001,4000.8,4000.2,2.499875]
[1760551228967,0.001,4000.8,4000.2,3.05014299]
[1760551230109,2.50054077,4000.8,4000.2,0.55026799]
[1760551230415,0.001,4000.8,3999.8,2.553]
[1760551230573,0.099,4000.2,3999.1,0.4354]
[1760551230902,0.2109,4000.4,3999.8,2.5000681]
[1760551231298,0.2109,4000.4,3999.5,1.728]
[1760551231499,2.50082473,4000.3,3999.7,2.50018638]
[1760551231797,0.001,4000.3,3999.7,0.7362118]
[1760551232007,0.001,4000.3,3999.9,2.50002342]
[1760551232374,0.001,4000.3,4000.0,2.49999698]
[1760551232573,0.001,4000.3,3999.7,2.52518512]
[1760551232985,0.001,4000.3,3999.9,2.50001212]
[1760551233518,0.001,4000.3,4000.0,2.52498554]
[1760551233715,0.001,4000.3,4000.1,0.25249855]
[1760551234282,0.001,4000.3,4000.2,0.02499875]
[1760551234483,0.001,4000.3,4000.2,2.96027375]
[1760551234791,0.001,4000.3,4000.2,2.935275]
[1760551235327,0.001,4000.3,4000.2,3.568875]
[1760551235614,0.001,4000.3,4000.2,3.82261051]
[1760551236017,0.001,4000.3,4000.2,4.48120926]
[1760551236584,0.001,4000.3,4000.2,0.88733551]
[1760551236894,0.001,4000.3,4000.2,2.499875]
[1760551237089,0.001,4000.3,4000.2,2.935275]
[1760551237293,0.001,4000.3,4000.2,2.96027375]
[1760551237482,0.001,4000.3,4000.2,3.08507375]
[1760551237679,0.001,4000.3,4000.2,3.060075]
[1760551237882,0.001,4000.3,4000.2,3.22954348]
[1760551238722,0.001,4000.3,4000.2,3.86314348]
[1760551239022,2.50004948,4000.0,3999.0,2.93802107]
[1760551239317,0.1736,3999.9,3999.5,2.5002648]
[1760551239514,0.001,4000.3,3999.6,0.0250025]
[1760551239719,0.001,4000.3,4000.2,2.499875]
[1760551239881,0.001,4000.3,4000.2,3.6334604]
[1760551240080,0.001,4000.3,4000.2,4.0688604]
[1760551240320,0.001,4000.3,4000.2,2.9998604]
[1760551240527,0.001,4000.3,4000.2,0.4999854]
[1760551240880,0.001,4000.3,3999.8,0.2123]
[1760551241086,0.001,4000.3,3999.8,1.9403]
[1760551241286,0.001,4000.3,4000.0,2.4999861]
[1760551241589,0.001,4000.3,3999.9,1.728]
[1760551241590,0.001,4000.3,4000.1,2.49992513]
[1760551242123,0.001,4000.3,4000.2,2.499875]
[1760551242285,0.001,4000.3,4000.2,3.43035501]
[1760551242991,0.001,4000.3,4000.2,4.49935501]
[1760551243185,0.001,4000.3,4000.2,4.06395501]
[1760551243396,0.001,4000.3,4000.2,4.49935501]
[1760551243611,0.001,4000.3,4000.2,6.22735501]
[1760551244885,0.001,4000.3,4000.2,8.77935501]
[1760551245301,0.001,4000.3,4000.2,6.22735501]
[1760551246018,0.001,4000.3,4000.2,8.77935501]
[1760551246220,0.001,4000.3,4000.2,6.22735501]
[1760551246423,0.001,4000.3,4000.2,8.77935501]
[1760551249041,0.1795,4001.9,4001.4,2.49908211]
[1760551249248,0.1795,4001.9,4001.5,0.24990821]
[1760551249429,0.1795,4001.9,4001.8,0.1248]
[1760551249634,0.2796,4001.9,4001.8,0.1248]
[1760551250908,0.2796,4001.9,4000.3,0.2199]
[1760551251141,0.12512517,4001.8,3999.8,1.728]
[1760551251355,0.001,4001.2,4000.1,0.24524338]
[1760551251514,2.59947125,4001.1,4000.4,2.499739]
[1760551251713,0.001,4001.2,4000.1,0.24524338]
[1760551251714,0.2101,4000.5,4000.1,2.74512989]
[1760551252054,0.1012,4000.4,4000.2,2.49986692]
[1760551252211,0.2101,4000.5,4000.1,0.24524338]
[1760551252409,0.2101,4000.5,4000.1,2.49993667]
[1760551252637,0.3113,4000.4,4000.1,2.551]
[1760551252957,0.099,4000.3,3999.9,2.50001037]
[1760551253161,0.099,4000.3,4000.0,2.49999926]
[1760551253318,0.099,4000.3,3999.3,2.1903]
[1760551253648,0.099,4000.3,3999.2,4.86208505]
[1760551253649,0.099,4000.3,3999.6,3.1338348]
[1760551253858,0.099,4000.3,3999.5,0.6336]
[1760551254055,0.099,4000.3,3999.6,2.50024887]
[1760551254213,0.2123,4000.4,3999.0,2.50261573]
[1760551254214,0.1721,3999.7,3999.0,2.50261573]
[1760551254414,0.1721,3999.7,3999.0,0.002]
[1760551254614,0.1721,3999.7,3999.1,2.50056262]
[1760551254810,0.1721,3999.7,3999.2,2.50049218]
[1760551255039,0.1721,3999.7,3999.1,0.27224626]
[1760551255249,0.1721,3999.7,3999.2,2.5005001]
[1760551255466,0.1721,3999.7,3999.6,2.50025002]
[1760551255873,0.2718,3999.7,3999.6,2.50025002]
[1760551257044,0.1721,3999.7,3999.6,3.00031088]
[1760551257279,0.2123,4000.4,3999.9,2.50000634]
[1760551257451,0.2123,4000.4,3999.8,2.5000746]
[1760551257655,0.1004,4000.3,3999.8,2.5000746]
[1760551257848,0.1012,4000.2,3999.4,2.50032894]
[1760551258181,0.1012,4000.1,3999.1,0.27224626]
[1760551258387,0.2123,4000.4,3999.2,0.27748315]
[1760551258388,0.1012,4000.0,3999.2,0.27748315]
[1760551258592,0.1012,3999.9,3999.3,2.50038332]
[1760551258881,2.71205303,4000.4,3999.5,2.50029811]
[1760551258882,0.1012,3999.8,3999.5,2.50029811]
[1760551259086,0.1012,3999.7,3999.6,2.50023992]
[1760551259280,0.1012,3999.7,3999.4,2.50032471]
[1760551259579,0.1012,3999.6,3999.1,2.50056262]
[1760551259766,0.1012,3999.5,3999.1,0.50535626]
[1760551259964,0.1012,3999.5,3999.0,0.002]
[1760551259965,0.1012,3999.4,3999.0,0.002]
[1760551260274,0.2123,4000.4,3999.0,0.002]
[1760551260473,0.1012,3999.9,3999.0,0.002]
[1760551260678,0.1012,3999.9,3999.4,2.50035881]
[1760551260877,2.50005981,4000.0,3999.8,0.1248]
[1760551261050,2.50005759,4000.0,3999.8,0.1248]
[1760551261372,0.2123,4000.4,3999.0,0.002]
[1760551261373,2.50015059,3999.8,3999.0,0.002]
[1760551261578,0.02502517,3999.7,3999.5,0.1248]
[1760551261779,2.50056262,3999.1,3999.0,0.002]
[1760551261989,2.62678779,3999.1,3999.0,0.002]
[1760551262155,2.60176262,3999.1,3999.0,0.001]
[1760551262363,4.35478779,3999.1,3999.0,0.001]
[1760551262755,2.50106295,3998.3,3998.2,0.002]
[1760551263165,2.62838812,3998.3,3998.2,0.002]
[1760551263479,2.50137575,3997.8,3996.0,0.2347]
[1760551263682,2.50137575,3997.8,3996.4,2.50219038]
[1760551264075,2.60437575,3997.8,3996.2,2.50237251]
[1760551264277,2.60437575,3997.8,3996.0,0.2347]
[1760551264460,2.60437575,3997.8,3996.2,0.4739]
[1760551264865,2.60437575,3997.8,3996.0,0.2347]
[1760551265449,2.60437575,3997.8,3996.2,2.50232236]
[1760551265649,2.60437575,3997.8,3996.0,3.2110857]
[1760551265862,2.60437575,3997.8,3996.0,0.7086]
[1760551266596,4.35740092,3997.8,3996.0,0.7086]
[1760551266802,14.45385281,3997.8,3995.6,0.002]
[1760551266957,14.45385281,3997.8,3995.7,2.50264389]
[1760551266958,14.42882764,3997.8,3995.7,2.50264389]
[1760551267158,14.42882764,3997.8,3995.6,0.002]
[1760551267393,2.50245736,3996.1,3995.6,0.002]
[1760551267601,2.50256512,3995.9,3995.6,0.002]
[1760551267754,0.02502517,3996.0,3995.6,0.002]
[1760551267954,0.2164,3996.2,3995.6,0.002]
[1760551268151,2.71750406,3996.5,3995.6,0.4759]
[1760551268391,0.2153,3996.5,3995.6,0.4759]
[1760551268689,2.50255257,3996.0,3995.6,0.002]
[1760551269077,2.67199039,3995.7,3995.6,0.002]
[1760551269405,0.1693,3995.7,3995.6,0.002]
[1760551269691,2.50269039,3995.7,3995.6,0.002]
[1760551269987,2.60419039,3995.7,3995.6,0.002]
[1760551270354,2.50269039,3995.7,3995.6,0.002]
[1760551270596,2.60419039,3995.7,3995.6,0.002]
[1760551270754,2.62921556,3995.7,3995.6,0.002]
[1760551271455,2.60419039,3995.7,3995.6,0.002]
[1760551272862,4.35721556,3995.7,3995.6,0.002]
[1760551273557,4.23087831,3995.4,3995.3,1e-08]
[1760551273770,4.25590348,3995.4,3995.3,1e-08]
[1760551273976,4.33237831,3995.4,3995.3,1e-08]
[1760551275011,4.46127529,3995.4,3995.3,1e-08]
[1760551275398,4.33237831,3995.4,3995.3,1e-08]
[1760551275598,2.60437831,3995.4,3995.3,1e-08]
[1760551276107,2.62940348,3995.4,3995.3,1e-08]
[1760551276783,2.60437831,3995.4,3995.3,1e-08]
[1760551276976,3.23797831,3995.4,3995.3,1e-08]
[1760551277407,3.23797831,3995.4,3994.0,0.002]
[1760551277408,2.3616,3995.3,3994.0,0.002]
[1760551277594,2.71619294,3994.1,3994.0,0.002]
[1760551277926,4.44419294,3994.1,3994.0,0.002]
[1760551278100,4.57181811,3994.1,3994.0,0.002]
[1760551278300,2.50431995,3993.1,3993.0,0.002]
[1760551278505,2.0431,3994.1,3993.0,0.002]
[1760551278506,2.50425723,3993.2,3993.1,0.2347]
[1760551278677,2.50431995,3993.1,3993.0,0.002]
[1760551279083,1.728,3993.8,3993.0,0.4759]
[1760551279295,13.11004862,3994.1,3993.1,0.2347]
[1760551279296,2.50413753,3993.4,3993.1,0.2347]
[1760551279582,2.50422289,3993.3,3993.1,0.2347]
[1760551279792,2.50422289,3993.3,3993.1,0.7086]
[1760551280118,2.50419452,3993.3,3993.2,0.4739]
[1760551280333,1.728,3993.9,3993.2,0.4739]
[1760551280620,10.67703861,3995.1,3993.2,0.4739]
[1760551280918,0.1787,3995.1,3993.2,0.4739]
[1760551281235,1.8335,3995.0,3993.2,0.4739]
[1760551281390,2.50399871,3993.7,3993.2,0.4739]
[1760551281583,2.5041233,3993.5,3993.2,0.4739]
[1760551281778,2.5041975,3993.3,3993.1,0.2347]
[1760551281985,1.728,3994.2,3993.2,0.4382]
[1760551282178,2.50419452,3993.3,3993.2,0.4382]
[1760551282618,2.50408886,3993.5,3993.2,0.4382]
[1760551282788,2.50417388,3993.4,3993.2,0.4382]
[1760551282997,2.50420653,3993.3,3993.1,0.2347]
[1760551283196,2.50425723,3993.2,3993.1,0.2347]
[1760551283405,1.728,3994.2,3993.1,0.6729]
[1760551283605,1.728,3994.2,3993.0,0.002]
[1760551283606,2.50431995,3993.1,3993.0,0.002]
[1760551284127,2.52934512,3993.1,3993.0,0.002]
[1760551284286,2.50431995,3993.1,3993.0,0.002]
[1760551284489,0.099,3993.5,3993.0,0.002]
[1760551284696,4.2315049,3994.4,3993.0,0.4402]
[1760551285012,2.50388726,3993.8,3993.1,0.2243]
[1760551285198,2.50406163,3993.6,3993.2,0.31688396]
[1760551285398,2.50406163,3993.6,3993.1,0.2243]
[1760551285609,2.50406163,3993.6,3993.2,0.4382]
[1760551285806,2.50406163,3993.6,3993.1,0.2243]
[1760551285807,2.50401527,3993.6,3993.3,0.4382]
[1760551286022,2.50367383,3994.2,3993.1,0.2243]
[1760551286224,2.50411235,3993.5,3993.4,0.4382]
[1760551286392,2.50416454,3993.4,3993.1,0.2243]
[1760551286727,2.50400342,3993.7,3993.0,0.002]
[1760551286728,2.50431995,3993.1,3993.0,0.002]
[1760551288025,0.001,3993.6,3993.0,0.002]
[1760551288202,2.50431995,3993.1,3993.0,0.002]
[1760551288810,2.5042574,3993.2,3993.0,0.002]
[1760551289014,2.50431639,3993.2,3993.0,0.002]
[1760551289233,2.50431995,3993.1,3993.0,0.002]
[1760551289821,2.60451995,3993.1,3993.0,0.002]
[1760551290021,2.50431995,3993.1,3993.0,0.002]
[1760551291130,2.52934512,3993.1,3993.0,0.002]
[1760551291307,2.60451995,3993.1,3993.0,0.002]
[1760551291811,4.33251995,3993.1,3993.0,0.002]
[1760551293334,4.23231995,3993.1,3993.0,0.002]
[1760551293916,0.001,3993.6,3993.0,0.002]
[1760551294116,2.50431995,3993.1,3993.0,0.002]
[1760551294321,2.52934512,3993.1,3993.0,0.002]
[1760551294517,2.50431995,3993.1,3993.0,0.002]
[1760551295309,2.62954512,3993.1,3993.0,0.002]
[1760551295640,2.50431995,3993.1,3993.0,0.002]
[1760551297323,2.52934512,3993.1,3993.0,0.002]
[1760551297523,2.50431995,3993.1,3993.0,0.002]
[1760551300053,2.60451995,3993.1,3993.0,0.002]
[1760551301764,2.50431995,3993.1,3993.0,0.002]
[1760551303076,2.52934512,3993.1,3993.0,0.002]
[1760551304150,2.50431995,3993.1,3993.0,0.002]
[1760551305594,2.60451995,3993.1,3993.0,0.002]
[1760551306093,2.62954512,3993.1,3993.0,0.002]
[1760551306303,14.75138373,3993.1,3993.0,0.002]
[1760551306595,2.50488452,3992.2,3992.1,1e-08]
[1760551307349,2.60618452,3992.2,3992.1,1e-08]
[1760551307901,4.35920969,3992.2,3992.1,1e-08]
[1760551308458,4.33418452,3992.2,3992.1,1e-08]
[1760551308981,4.35920969,3992.2,3992.1,1e-08]
[1760551309168,4.33418452,3992.2,3992.1,1e-08]
[1760551309352,4.96778452,3992.2,3992.1,1e-08]
[1760551309855,15.36162313,3992.2,3992.1,1e-08]
[1760551311053,2.50513552,3991.8,3991.7,0.002]
[1760551311253,4.23313552,3991.8,3991.7,0.002]
[1760551311658,2.50513552,3991.8,3991.7,0.4628]
[1760551311910,2.50513552,3991.8,3991.7,0.002]
[1760551312489,2.61023552,3991.8,3991.7,0.002]
[1760551312792,3.26886069,3991.8,3991.7,0.002]
[1760551312958,2.50582604,3990.7,3990.6,1.625]
[1760551313277,2.50559557,3991.1,3990.4,3.7108]
[1760551313278,2.50595163,3990.5,3990.4,3.25]
[1760551313476,2.50532381,3991.5,3990.4,3.7108]
[1760551313652,1.728,3991.4,3990.5,0.4608]
[1760551313856,2.50569259,3991.0,3990.5,0.4608]
[1760551314077,2.50554903,3991.2,3990.5,0.4608]
[1760551314293,2.50551212,3991.2,3991.1,0.2174]
[1760551314964,2.50551212,3991.2,3990.5,0.4414]
[1760551315290,2.50588883,3990.6,3990.5,0.864118]
[1760551315491,2.50588883,3990.6,3990.5,0.4414]
[1760551316188,2.50595163,3990.5,3990.4,3.25]
[1760551316562,2.50593946,3990.6,3990.4,3.25]
[1760551316793,2.50595163,3990.5,3990.4,3.25]
[1760551317484,2.50595163,3990.5,3990.4,3.6914]
[1760551318066,2.50595163,3990.5,3990.4,3.25]
[1760551318283,4.2589768,3990.5,3990.4,1e-08]
[1760551318459,4.23395163,3990.5,3990.4,1e-08]
[1760551320062,4.33295163,3990.5,3990.4,1e-08]
[1760551320667,4.23426566,3990.0,3989.9,1e-08]
[1760551321166,4.33326566,3990.0,3989.9,1e-08]
[1760551321398,4.35829083,3990.0,3989.9,1e-08]
[1760551321606,2.5070825,3988.7,3988.3,0.2195]
[1760551321902,2.50702128,3988.8,3988.7,0.4414]
[1760551322201,1.941,3989.9,3988.7,0.4414]
[1760551322412,0.1001,3990.3,3988.7,0.4414]
[1760551322704,0.3099,3991.7,3990.2,0.2195]
[1760551322909,2.50590048,3990.6,3990.3,0.4414]
[1760551323092,2.50577263,3990.8,3990.2,0.2195]
[1760551323328,2.50577428,3990.8,3990.4,0.4414]
[1760551323500,2.50568224,3991.0,3990.5,0.4414]
[1760551323695,2.50572593,3990.9,3990.5,0.4414]
[1760551323895,10.39483861,3991.8,3990.5,0.4414]
[1760551324143,2.50619808,3991.8,3990.6,2.75039353]
[1760551324298,2.50519828,3991.7,3990.7,1.01118053]
[1760551324493,2.50549691,3991.3,3990.8,0.4414]
[1760551324723,2.5055756,3991.1,3990.9,0.4414]
[1760551324922,2.50563768,3991.0,3990.9,0.4414]
[1760551325127,2.50554578,3991.2,3990.9,0.4414]
[1760551325308,2.50554578,3991.2,3991.0,0.4414]
[1760551325521,2.5055749,3991.1,3991.0,0.4414]
[1760551326243,2.50568113,3991.0,3990.6,0.2195]
[1760551326541,2.50618506,3991.8,3990.7,0.4414]
[1760551326542,0.001,3991.8,3990.7,0.4414]
[1760551326708,0.001,3991.8,3990.6,0.2195]
[1760551326898,2.5055874,3991.1,3990.6,0.2195]
[1760551327102,2.50552294,3991.2,3990.7,0.4414]
[1760551327299,2.50570046,3990.9,3990.6,0.2195]
[1760551327499,2.50519828,3991.7,3990.2,0.2195]
[1760551327500,2.50607723,3990.3,3990.2,0.2195]
[1760551328100,0.1019,3991.4,3990.2,0.6609]
[1760551328312,2.50607723,3990.3,3990.2,0.6609]
[1760551328526,0.1029,3991.4,3990.2,0.6609]
[1760551328706,2.50589595,3990.6,3990.2,0.6609]
[1760551328905,2.50596782,3990.5,3990.3,0.4414]
[1760551329148,2.50588883,3990.6,3990.2,0.2195]
[1760551329349,2.50588883,3990.6,3990.3,0.4414]
[1760551329350,2.50607407,3990.4,3990.3,0.4414]
[1760551329650,2.50596034,3990.5,3990.4,0.4414]
[1760551330150,2.50596034,3990.5,3990.2,0.2195]
[1760551330151,2.50607723,3990.3,3990.2,0.2195]
[1760551330450,2.50620285,3990.1,3990.0,0.002]
[1760551330633,2.50620285,3990.1,3990.0,0.1268]
[1760551331856,0.1248,3990.7,3990.0,0.5682]
[1760551331857,2.63063463,3990.7,3990.0,0.5682]
[1760551332162,2.50583463,3990.7,3990.6,0.2195]
[1760551332661,2.50595163,3990.5,3990.4,0.1248]
[1760551333063,2.50595163,3990.5,3990.4,0.5662]
[1760551333262,0.1248,3990.9,3990.4,0.5662]
[1760551333468,2.50521601,3991.7,3990.5,0.4414]
[1760551333469,0.1248,3991.3,3990.5,0.4414]
[1760551333653,2.50551212,3991.2,3990.5,0.4414]
[1760551334053,2.50563768,3991.0,3990.9,0.1248]
[1760551336972,2.50587043,3990.7,3990.3,0.2195]
[1760551337168,2.50601443,3990.4,3990.3,0.2195]
[1760551337666,2.50601443,3990.4,3990.3,0.1248]
[1760551337852,2.50589185,3990.6,3990.0,0.002]
[1760551337853,2.50620285,3990.1,3990.0,0.002]
[1760551338053,2.50620285,3990.1,3990.0,0.1268]
[1760551338265,0.1248,3990.7,3990.0,0.1268]
[1760551338468,0.1248,3990.7,3990.1,0.2195]
[1760551338469,2.50584881,3990.7,3990.1,0.2195]
[1760551338649,0.1248,3991.1,3990.5,0.1248]
[1760551338847,2.50582604,3990.7,3990.6,0.4414]
[1760551340377,2.50582604,3990.7,3990.0,0.002]
[1760551340378,4.23388883,3990.6,3990.0,0.002]
[1760551340580,2.50620285,3990.1,3990.0,0.1268]
[1760551342268,2.60630285,3990.1,3990.0,0.002]
[1760551342777,4.33430285,3990.1,3990.0,0.002]
[1760551343679,4.23420285,3990.1,3990.0,0.002]
[1760551343860,2.63100285,3990.1,3990.0,0.002]
[1760551344381,1.728,3990.8,3990.0,0.43]
[1760551344691,2.50614004,3990.2,3990.1,0.2248]
[1760551345272,2.50620285,3990.1,3990.0,0.002]
[1760551346550,2.53122802,3990.1,3990.0,0.002]
[1760551346952,4.35932802,3990.1,3990.0,0.002]
[1760551347279,4.33430285,3990.1,3990.0,0.002]
[1760551348552,4.23420285,3990.1,3990.0,0.002]
[1760551348799,2.50620285,3990.1,3990.0,0.002]
[1760551348995,0.2055,3990.8,3990.0,0.002]
[1760551348996,0.001,3991.1,3990.0,0.002]
[1760551349161,2.50614004,3990.2,3990.1,0.2248]
[1760551349354,2.50620285,3990.1,3990.0,0.002]
[1760551350682,0.2066,3990.7,3990.0,0.002]
[1760551350993,2.50620285,3990.1,3990.0,0.002]
[1760551351788,2.51633344,3990.0,3989.6,0.43]
[1760551351989,2.51629203,3990.0,3989.7,0.428]
[1760551352196,0.01002255,3990.0,3989.8,0.428]
[1760551352395,2.50632847,3989.9,3989.8,0.428]
[1760551352691,2.51630022,3990.0,3989.8,0.428]
[1760551352879,2.51629267,3990.0,3989.6,0.002]
[1760551353078,2.51629267,3990.0,3989.9,0.428]
[1760551353299,2.50632847,3989.9,3989.6,0.002]
[1760551353607,2.50645411,3989.7,3989.6,0.002]
[1760551354306,4.69517928,3989.7,3989.6,0.002]
[1760551354614,4.67015411,3989.7,3989.6,0.002]
[1760551354815,4.35925411,3989.7,3989.6,0.002]
[1760551355024,4.45825411,3989.7,3989.6,0.002]
[1760551355368,4.35925411,3989.7,3989.6,0.002]
[1760551355572,4.45825411,3989.7,3989.6,0.002]
[1760551356805,4.48327928,3989.7,3989.6,0.002]
[1760551357049,4.23476827,3989.2,3989.1,0.002]
[1760551357207,4.25979344,3989.2,3989.1,0.002]
[1760551357508,4.35879344,3989.2,3989.1,0.002]
[1760551358009,4.33376827,3989.2,3989.1,0.002]
[1760551358776,4.23476827,3989.2,3989.1,0.002]
[1760551359101,4.33376827,3989.2,3989.1,0.002]
[1760551359472,4.23476827,3989.2,3989.1,0.002]
[1760551359884,4.33376827,3989.2,3989.1,0.002]
[1760551360899,4.23476827,3989.2,3989.1,0.002]
[1760551361298,4.25979344,3989.2,3989.1,0.002]
[1760551361699,4.23476827,3989.2,3989.1,0.002]
[1760551361911,4.25979344,3989.2,3989.1,0.002]
[1760551362306,4.23476827,3989.2,3989.1,0.002]
[1760551362707,4.23476827,3989.2,3989.1,0.6548]
[1760551362891,4.23476827,3989.2,3989.1,0.2268]
[1760551363985,4.23476827,3989.2,3989.1,0.002]
[1760551365830,0.1248,3989.4,3989.1,0.002]
[1760551366131,0.01002255,3990.0,3989.2,0.6336]
[1760551366428,0.01002255,3990.0,3989.3,0.55684]
[1760551366733,0.01002255,3990.0,3989.7,2.50644646]
[1760551366889,0.01002255,3990.0,3989.8,2.50639078]
[1760551367095,0.01002255,3990.0,3989.9,2.50632847]
[1760551367623,0.01002255,3990.0,3989.9,0.428]
[1760551367788,0.01002255,3990.0,3989.9,1.03544895]
[1760551367984,0.01002255,3990.0,3989.9,2.93432847]
[1760551369563,0.01002255,3990.0,3989.9,3.59299175]
[1760551369926,0.01002255,3990.0,3989.9,1.08666328]
[1760551370152,0.01002255,3990.0,3989.9,3.56792847]
[1760551370551,0.01002255,3990.0,3989.6,2.98051413]
[1760551370753,0.01002255,3990.0,3989.8,0.474]
[1760551370928,0.01002255,3990.0,3989.3,0.474]
[1760551371122,2.51629493,3990.0,3989.3,0.474]
[1760551371348,2.50632847,3989.9,3989.3,0.474]
[1760551371553,2.50649941,3989.7,3989.3,0.474]
[1760551371724,0.01002255,3990.0,3989.3,0.474]
[1760551371936,0.01002255,3990.0,3989.4,0.02506642]
[1760551372168,0.01002255,3990.0,3989.3,0.474]
[1760551372377,2.5063464,3989.9,3989.3,0.474]
[1760551372530,0.01002255,3990.0,3989.3,2.98069606]